[Event "*** SCC Grand Prix: Titled Tuesday Blitz"]
[Site "Chess.com"]
[Date "2020.07.14"]
[Round "3"]
[White "Borsuk_Konstantin"]
[Black "Tactictic"]
[Result "1-0"]
[WhiteElo "2565"]
[BlackElo "2376"]
[TimeControl "180+1"]
[EndTime "10:28:47 PDT"]
[Termination "Borsuk_Konstantin won by resignation"]

1. d4 {[%clk 0:03:00.9]} 1... Nf6 {[%clk 0:02:57.9]} 2. c4 {[%clk 0:03:01.3]}
2... e6 {[%clk 0:02:57.8]} 3. Nc3 {[%clk 0:03:01.6]} 3... d5 {[%clk 0:02:58.2]}
4. cxd5 {[%clk 0:03:01]} 4... exd5 {[%clk 0:02:59.1]} 5. Bg5 {[%clk 0:03:00.4]}
5... c6 {[%clk 0:02:57.9]} 6. e3 {[%clk 0:03:00.3]} 6... Be7 {[%clk 0:02:55.2]}
7. Bd3 {[%clk 0:02:59.4]} 7... Nbd7 {[%clk 0:02:54.9]} 8. Qc2 {[%clk 0:02:58.9]}
8... Nh5 {[%clk 0:02:54.1]} 9. Bxe7 {[%clk 0:02:57.4]} 9... Qxe7 {[%clk
0:02:54.7]} 10. Nge2 {[%clk 0:02:57.7]} 10... Nb6 {[%clk 0:02:54.4]} 11. O-O
{[%clk 0:02:56]} 11... Bd7 {[%clk 0:02:43.6]} 12. Rae1 {[%clk 0:02:40.9]} 12...
Nf6 {[%clk 0:02:34.1]} 13. Ng3 {[%clk 0:02:34.4]} 13... O-O {[%clk 0:02:32.5]}
14. e4 {[%clk 0:02:30.6]} 14... dxe4 {[%clk 0:02:28.6]} 15. Ncxe4 {[%clk
0:02:29.9]} 15... Nxe4 {[%clk 0:02:26.3]} 16. Bxe4 {[%clk 0:02:29.4]} 16... Qh4
{[%clk 0:02:22.3]} 17. a4 {[%clk 0:02:22.4]} 17... Be6 {[%clk 0:02:19.9]} 18. a5
{[%clk 0:02:20.8]} 18... Nd5 {[%clk 0:02:12.6]} 19. Bxd5 {[%clk 0:02:20.6]}
19... Bxd5 {[%clk 0:02:10.7]} 20. Nf5 {[%clk 0:02:13.7]} 20... Qg5 {[%clk
0:02:02.7]} 21. Ne7+ {[%clk 0:01:49.9]} 21... Kh8 {[%clk 0:02:02.1]} 22. f4
{[%clk 0:01:49.3]} 22... Qf6 {[%clk 0:01:51.4]} 23. Nxd5 {[%clk 0:01:38.3]}
23... cxd5 {[%clk 0:01:52.3]} 24. Re5 {[%clk 0:01:36.2]} 24... Rfd8 {[%clk
0:01:38.4]} 25. Qb3 {[%clk 0:01:28.5]} 25... Qc6 {[%clk 0:01:34.5]} 26. Re7
{[%clk 0:01:19.8]} 26... Rd7 {[%clk 0:01:34.2]} 27. Qb4 {[%clk 0:01:10]} 27...
h5 {[%clk 0:00:58.7]} 28. Re5 {[%clk 0:01:06.5]} 28... g6 {[%clk 0:00:54.5]} 29.
f5 {[%clk 0:01:06.4]} 29... Kg7 {[%clk 0:00:39.9]} 30. Qd2 {[%clk 0:00:54.6]}
30... Rc8 {[%clk 0:00:30.5]} 31. fxg6 {[%clk 0:00:49.8]} 31... fxg6 {[%clk
0:00:27.3]} 32. Qf4 {[%clk 0:00:44.9]} 32... Qd6 {[%clk 0:00:23.2]} 33. h4
{[%clk 0:00:38]} 33... Rf8 {[%clk 0:00:23.1]} 34. Qxf8+ {[%clk 0:00:31.3]} 34...
Qxf8 {[%clk 0:00:24]} 35. Rxf8 {[%clk 0:00:31.2]} 35... Kxf8 {[%clk 0:00:24.9]}
36. b4 {[%clk 0:00:28.9]} 36... Kf7 {[%clk 0:00:24.8]} 37. Kf2 {[%clk
0:00:28.6]} 37... Rd6 {[%clk 0:00:24.3]} 38. b5 {[%clk 0:00:27.5]} 38... b6
{[%clk 0:00:20.1]} 39. a6 {[%clk 0:00:26.3]} 39... Rf6+ {[%clk 0:00:17]} 40. Ke3
{[%clk 0:00:24.5]} 40... Rd6 {[%clk 0:00:16.5]} 41. Kf4 {[%clk 0:00:22]} 41...
Rf6+ {[%clk 0:00:15.3]} 42. Kg5 {[%clk 0:00:22.1]} 42... Rf2 {[%clk 0:00:15.4]}
43. Rxd5 {[%clk 0:00:21.7]} 43... Rf3 {[%clk 0:00:15.8]} 44. gxf3 {[%clk
0:00:20.8]} 1-0

[Event "*** SCC Grand Prix: Titled Tuesday Blitz"]
[Site "Chess.com"]
[Date "2020.07.14"]
[Round "3"]
[White "bmt011"]
[Black "realmadridtv"]
[Result "0-1"]
[WhiteElo "2118"]
[BlackElo "2457"]
[TimeControl "180+1"]
[EndTime "10:28:47 PDT"]
[Termination "realmadridtv won by resignation"]

1. d4 {[%clk 0:03:00]} 1... Nf6 {[%clk 0:02:59.3]} 2. Bf4 {[%clk 0:02:59.6]}
2... c6 {[%clk 0:02:55]} 3. e3 {[%clk 0:02:57.4]} 3... d6 {[%clk 0:02:54.3]} 4.
h3 {[%clk 0:02:55.2]} 4... g6 {[%clk 0:02:54.1]} 5. Nf3 {[%clk 0:02:55.4]} 5...
Bg7 {[%clk 0:02:54.2]} 6. Be2 {[%clk 0:02:55.9]} 6... O-O {[%clk 0:02:53.6]} 7.
c4 {[%clk 0:02:55.8]} 7... Nbd7 {[%clk 0:02:53.1]} 8. Nc3 {[%clk 0:02:55.7]}
8... Qe8 {[%clk 0:02:52]} 9. Bh2 {[%clk 0:02:53.1]} 9... e5 {[%clk 0:02:49.9]}
10. O-O {[%clk 0:02:53.1]} 10... e4 {[%clk 0:02:47.1]} 11. Nd2 {[%clk
0:02:53.2]} 11... Qe7 {[%clk 0:02:45.5]} 12. c5 {[%clk 0:02:52.1]} 12... dxc5
{[%clk 0:02:38.6]} 13. Qc2 {[%clk 0:02:20.9]} 13... cxd4 {[%clk 0:02:35.5]} 14.
Ncxe4 {[%clk 0:02:21.3]} 14... dxe3 {[%clk 0:02:31.5]} 15. Bd6 {[%clk
0:02:18.8]} 15... exf2+ {[%clk 0:02:16.6]} 16. Rxf2 {[%clk 0:02:17.3]} 16... Qe6
{[%clk 0:02:10.2]} 17. Bc4 {[%clk 0:02:14.1]} 17... Nd5 {[%clk 0:02:08.6]} 18.
Bxf8 {[%clk 0:02:13.6]} 18... Nxf8 {[%clk 0:02:07.6]} 19. Ng5 {[%clk 0:02:09]}
19... Qe3 {[%clk 0:02:02.4]} 20. Nxf7 {[%clk 0:01:43.8]} 20... Bd4 {[%clk
0:01:45.9]} 21. Ne4 {[%clk 0:01:34.6]} 21... Bf5 {[%clk 0:01:41.2]} 22. Nfd6
{[%clk 0:01:30.3]} 22... Qxf2+ {[%clk 0:01:29.3]} 23. Qxf2 {[%clk 0:01:17.9]}
23... Bxf2+ {[%clk 0:01:28.3]} 24. Nxf2 {[%clk 0:01:15]} 24... Rb8 {[%clk
0:01:11.7]} 25. Nxf5 {[%clk 0:01:09.5]} 25... gxf5 {[%clk 0:01:11.3]} 26. Nd3
{[%clk 0:01:10.1]} 26... Nd7 {[%clk 0:01:09.7]} 27. Rf1 {[%clk 0:00:51.4]} 27...
Rf8 {[%clk 0:01:04.9]} 28. Nf4 {[%clk 0:00:44.3]} 28... Nb6 {[%clk 0:01:01.7]}
29. Bxd5+ {[%clk 0:00:30.4]} 29... Nxd5 {[%clk 0:00:58.4]} 30. Nxd5 {[%clk
0:00:30.6]} 30... cxd5 {[%clk 0:00:59.3]} 31. Rd1 {[%clk 0:00:30.9]} 31... Rd8
{[%clk 0:00:59.1]} 32. Rf1 {[%clk 0:00:31.3]} 32... Kf7 {[%clk 0:00:39.3]} 33.
Rxf5+ {[%clk 0:00:31.4]} 33... Ke6 {[%clk 0:00:40.2]} 34. Rf3 {[%clk 0:00:31.2]}
34... d4 {[%clk 0:00:37.4]} 35. Rd3 {[%clk 0:00:27.9]} 35... Ke5 {[%clk
0:00:37.2]} 36. Kf2 {[%clk 0:00:27.8]} 36... Ke4 {[%clk 0:00:37.8]} 37. Ke2
{[%clk 0:00:26.3]} 37... Rc8 {[%clk 0:00:37.1]} 38. Kd2 {[%clk 0:00:25.4]} 38...
Rg8 {[%clk 0:00:35.3]} 39. g3 {[%clk 0:00:22.6]} 39... Rf8 {[%clk 0:00:34.8]}
40. Ke2 {[%clk 0:00:21.8]} 40... Rf2+ {[%clk 0:00:32]} 41. Kxf2 {[%clk
0:00:17.8]} 41... Kxd3 {[%clk 0:00:32.9]} 0-1

[Event "*** SCC Grand Prix: Titled Tuesday Blitz"]
[Site "Chess.com"]
[Date "2020.07.14"]
[Round "3"]
[White "tk22h"]
[Black "f3andwins"]
[Result "1/2-1/2"]
[WhiteElo "2296"]
[BlackElo "2440"]
[TimeControl "180+1"]
[EndTime "10:28:47 PDT"]
[Termination "Game drawn by repetition"]

1. c4 {[%clk 0:03:00.9]} 1... e5 {[%clk 0:02:59.5]} 2. Nc3 {[%clk 0:02:59.9]}
2... Bb4 {[%clk 0:02:59]} 3. Nf3 {[%clk 0:02:58.7]} 3... Nc6 {[%clk 0:02:56.2]}
4. Nd5 {[%clk 0:02:57.6]} 4... Bc5 {[%clk 0:02:50.3]} 5. e3 {[%clk 0:02:57.6]}
5... e4 {[%clk 0:02:40]} 6. Ng1 {[%clk 0:02:56.8]} 6... Nf6 {[%clk 0:02:38.9]}
7. Ne2 {[%clk 0:02:55.1]} 7... O-O {[%clk 0:02:35.3]} 8. Nec3 {[%clk 0:02:53.4]}
8... Re8 {[%clk 0:02:34.2]} 9. d4 {[%clk 0:02:49.5]} 9... exd3 {[%clk
0:02:31.8]} 10. Bxd3 {[%clk 0:02:48.7]} 10... d6 {[%clk 0:02:31.3]} 11. O-O
{[%clk 0:02:47.7]} 11... Ne5 {[%clk 0:02:27.7]} 12. Be2 {[%clk 0:02:47.1]} 12...
Bf5 {[%clk 0:02:26.4]} 13. b3 {[%clk 0:02:44.9]} 13... Ne4 {[%clk 0:02:16.6]}
14. Nxe4 {[%clk 0:02:43.7]} 14... Bxe4 {[%clk 0:02:17.5]} 15. Bb2 {[%clk
0:02:43.1]} 15... Qg5 {[%clk 0:02:12.7]} 16. g3 {[%clk 0:02:25]} 16... Rac8
{[%clk 0:01:46.6]} 17. Bd4 {[%clk 0:02:23.9]} 17... Qf5 {[%clk 0:01:39.2]} 18.
f3 {[%clk 0:02:17.2]} 18... Bxd5 {[%clk 0:01:27.1]} 19. cxd5 {[%clk 0:02:15.9]}
19... Ng6 {[%clk 0:01:17.1]} 20. e4 {[%clk 0:02:14.2]} 20... Qe5 {[%clk
0:01:16.7]} 21. Bxc5 {[%clk 0:02:11.7]} 21... dxc5 {[%clk 0:01:17.6]} 22. Rc1
{[%clk 0:02:11.1]} 22... b6 {[%clk 0:01:15.1]} 23. Kg2 {[%clk 0:02:09.9]} 23...
c6 {[%clk 0:01:15]} 24. dxc6 {[%clk 0:02:08.4]} 24... Red8 {[%clk 0:01:11.6]}
25. Qc2 {[%clk 0:02:04.3]} 25... Rxc6 {[%clk 0:01:11.2]} 26. Rcd1 {[%clk
0:02:04.3]} 26... Rcd6 {[%clk 0:01:11.3]} 27. Rxd6 {[%clk 0:02:04.2]} 27... Rxd6
{[%clk 0:01:12.2]} 28. Rd1 {[%clk 0:02:04.3]} 28... Rd4 {[%clk 0:01:01.8]} 29.
Rxd4 {[%clk 0:01:40.8]} 29... Qxd4 {[%clk 0:01:02.7]} 30. Qd3 {[%clk 0:01:39.4]}
30... Qb2 {[%clk 0:00:52.9]} 31. a4 {[%clk 0:01:37.9]} 31... h6 {[%clk
0:00:48.9]} 32. f4 {[%clk 0:01:36.4]} 32... Nf8 {[%clk 0:00:28.9]} 33. f5 {[%clk
0:01:18.6]} 33... Nd7 {[%clk 0:00:20.8]} 34. Qxd7 {[%clk 0:01:15.3]} 34... Qxe2+
{[%clk 0:00:21.2]} 35. Kg1 {[%clk 0:01:13.2]} 35... Qe1+ {[%clk 0:00:21.5]} 36.
Kg2 {[%clk 0:01:12.7]} 36... Qxe4+ {[%clk 0:00:22.4]} 37. Kh3 {[%clk 0:01:12.4]}
37... Qb4 {[%clk 0:00:14.6]} 38. Qe8+ {[%clk 0:01:10.2]} 38... Kh7 {[%clk
0:00:15.1]} 39. Qxf7 {[%clk 0:01:10.1]} 39... Qe1 {[%clk 0:00:10.9]} 40. Kg2
{[%clk 0:00:49.5]} 40... Qe2+ {[%clk 0:00:11.1]} 41. Kg1 {[%clk 0:00:49.7]}
41... Qe3+ {[%clk 0:00:11.7]} 42. Kg2 {[%clk 0:00:49.7]} 42... Qe4+ {[%clk
0:00:12.3]} 43. Kg1 {[%clk 0:00:49.6]} 43... Qe1+ {[%clk 0:00:13]} 44. Kg2
{[%clk 0:00:49.7]} 44... Qd2+ {[%clk 0:00:13.8]} 45. Kg1 {[%clk 0:00:49.6]}
45... Qd1+ {[%clk 0:00:13.7]} 46. Kg2 {[%clk 0:00:49.6]} 46... Qe2+ {[%clk
0:00:14.4]} 47. Kg1 {[%clk 0:00:49.4]} 47... Qe5 {[%clk 0:00:15.1]} 48. Qxa7
{[%clk 0:00:42.2]} 48... Qxf5 {[%clk 0:00:15.3]} 49. Qxb6 {[%clk 0:00:41.2]}
49... Qb1+ {[%clk 0:00:15.6]} 50. Kg2 {[%clk 0:00:41.1]} 50... Qc2+ {[%clk
0:00:16.3]} 51. Kg1 {[%clk 0:00:40.8]} 51... Qd1+ {[%clk 0:00:16.4]} 52. Kg2
{[%clk 0:00:40.9]} 52... Qe2+ {[%clk 0:00:17.1]} 53. Kg1 {[%clk 0:00:41]} 53...
Qe1+ {[%clk 0:00:16.9]} 54. Kg2 {[%clk 0:00:41.3]} 54... Qe2+ {[%clk 0:00:17.8]}
55. Kg1 {[%clk 0:00:41.4]} 55... Qe1+ {[%clk 0:00:18.7]} 56. Kg2 {[%clk
0:00:41.7]} 56... Qe2+ {[%clk 0:00:19.3]} 1/2-1/2

[Event "*** SCC Grand Prix: Titled Tuesday Blitz"]
[Site "Chess.com"]
[Date "2020.07.14"]
[Round "3"]
[White "JSMastropiero"]
[Black "Ashedu66"]
[Result "1-0"]
[WhiteElo "2414"]
[BlackElo "2178"]
[TimeControl "180+1"]
[EndTime "10:28:48 PDT"]
[Termination "JSMastropiero won on time"]

1. d4 {[%clk 0:02:22.9]} 1... d5 {[%clk 0:02:59.4]} 2. c4 {[%clk 0:02:21.4]}
2... c6 {[%clk 0:02:59.6]} 3. cxd5 {[%clk 0:02:17.9]} 3... cxd5 {[%clk
0:02:58.9]} 4. Bf4 {[%clk 0:02:18.1]} 4... Nc6 {[%clk 0:02:57.7]} 5. e3 {[%clk
0:02:16.6]} 5... Nf6 {[%clk 0:02:56.8]} 6. Nc3 {[%clk 0:02:16.3]} 6... a6 {[%clk
0:02:56.9]} 7. Bd3 {[%clk 0:02:13.1]} 7... Bg4 {[%clk 0:02:42.8]} 8. Nge2 {[%clk
0:02:12.1]} 8... e6 {[%clk 0:02:41.6]} 9. O-O {[%clk 0:02:09.3]} 9... Bd6 {[%clk
0:02:25.5]} 10. f3 {[%clk 0:01:57.8]} 10... Bh5 {[%clk 0:02:23.4]} 11. Qd2
{[%clk 0:01:47.9]} 11... Bg6 {[%clk 0:02:20.6]} 12. Rac1 {[%clk 0:01:39.1]}
12... O-O {[%clk 0:02:14.6]} 13. Bxd6 {[%clk 0:01:37.9]} 13... Qxd6 {[%clk
0:02:14.2]} 14. Nf4 {[%clk 0:01:37.6]} 14... Rad8 {[%clk 0:01:42.1]} 15. Rfd1
{[%clk 0:01:33.9]} 15... Rfe8 {[%clk 0:01:34.6]} 16. Nxg6 {[%clk 0:01:28.1]}
16... hxg6 {[%clk 0:01:32.9]} 17. f4 {[%clk 0:01:29]} 17... b5 {[%clk
0:01:10.4]} 18. a4 {[%clk 0:01:20.3]} 18... b4 {[%clk 0:01:07.2]} 19. Na2 {[%clk
0:01:18.1]} 19... Rb8 {[%clk 0:00:47.6]} 20. Bxa6 {[%clk 0:01:11.8]} 20... Nxd4
{[%clk 0:00:16.2]} 21. exd4 {[%clk 0:01:00.9]} 21... Qxa6 {[%clk 0:00:15.8]} 22.
Nxb4 {[%clk 0:00:59.8]} 22... Qxa4 {[%clk 0:00:13.5]} 23. Nc6 {[%clk 0:00:59.5]}
23... Ra8 {[%clk 0:00:12]} 24. Qc2 {[%clk 0:00:42.4]} 24... Qxc2 {[%clk
0:00:10.8]} 25. Rxc2 {[%clk 0:00:42.3]} 25... Ne4 {[%clk 0:00:10.8]} 26. b4
{[%clk 0:00:40.2]} 26... Nd6 {[%clk 0:00:08.8]} 27. Rc5 {[%clk 0:00:35.6]} 27...
Nc4 {[%clk 0:00:08.7]} 28. b5 {[%clk 0:00:33.7]} 28... Ra2 {[%clk 0:00:08.3]}
29. Rb1 {[%clk 0:00:32.7]} 29... Ne3 {[%clk 0:00:06.2]} 30. b6 {[%clk 0:00:28]}
30... Rxg2+ {[%clk 0:00:05.7]} 31. Kh1 {[%clk 0:00:28.3]} 31... Ra8 {[%clk
0:00:02.3]} 32. Rc3 {[%clk 0:00:17.2]} 32... Raa2 {[%clk 0:00:02]} 33. Rxe3
{[%clk 0:00:16.8]} 33... Rxh2+ {[%clk 0:00:02.3]} 34. Kg1 {[%clk 0:00:17.2]}
34... Rhg2+ {[%clk 0:00:01.8]} 35. Kf1 {[%clk 0:00:17.4]} 35... Rgf2+ {[%clk
0:00:01.5]} 36. Ke1 {[%clk 0:00:17.7]} 36... Rh2 {[%clk 0:00:01.5]} 37. Kd1
{[%clk 0:00:17.7]} 1-0

[Event "*** SCC Grand Prix: Titled Tuesday Blitz"]
[Site "Chess.com"]
[Date "2020.07.14"]
[Round "3"]
[White "abykhovsky"]
[Black "Grischuk"]
[Result "1/2-1/2"]
[WhiteElo "2703"]
[BlackElo "3048"]
[TimeControl "180+1"]
[EndTime "10:28:49 PDT"]
[Termination "Game drawn by repetition"]

1. d4 {[%clk 0:03:00.9]} 1... Nf6 {[%clk 0:02:59.9]} 2. c4 {[%clk 0:02:59.8]}
2... e6 {[%clk 0:03:00.4]} 3. Nf3 {[%clk 0:02:59.8]} 3... d5 {[%clk 0:02:59.9]}
4. Nc3 {[%clk 0:02:59.9]} 4... Nbd7 {[%clk 0:02:58.2]} 5. Bg5 {[%clk 0:02:58.2]}
5... h6 {[%clk 0:02:51.4]} 6. Bh4 {[%clk 0:02:57.9]} 6... c6 {[%clk 0:02:43.8]}
7. e3 {[%clk 0:02:57.7]} 7... g5 {[%clk 0:02:44.2]} 8. Bg3 {[%clk 0:02:57.5]}
8... Nh5 {[%clk 0:02:44.9]} 9. Qc2 {[%clk 0:02:53.4]} 9... Nxg3 {[%clk
0:02:43.1]} 10. hxg3 {[%clk 0:02:53.1]} 10... Bg7 {[%clk 0:02:44]} 11. O-O-O
{[%clk 0:02:37.4]} 11... Qe7 {[%clk 0:02:35.4]} 12. e4 {[%clk 0:02:34]} 12... g4
{[%clk 0:01:53]} 13. Nh4 {[%clk 0:02:00.3]} 13... dxe4 {[%clk 0:01:51.8]} 14.
Nxe4 {[%clk 0:01:52.3]} 14... Nf6 {[%clk 0:01:52.1]} 15. c5 {[%clk 0:01:42.8]}
15... Nxe4 {[%clk 0:01:46.6]} 16. Qxe4 {[%clk 0:01:43.7]} 16... Qg5+ {[%clk
0:01:37.9]} 17. Kb1 {[%clk 0:01:42.4]} 17... Bd7 {[%clk 0:01:38.4]} 18. Be2
{[%clk 0:01:05.2]} 18... f5 {[%clk 0:01:10.2]} 19. Qc2 {[%clk 0:00:34]} 19...
O-O-O {[%clk 0:00:47.7]} 20. Bc4 {[%clk 0:00:33.7]} 20... Kb8 {[%clk 0:00:44.5]}
21. Rhe1 {[%clk 0:00:24.2]} 21... Rhe8 {[%clk 0:00:44.7]} 22. Qb3 {[%clk
0:00:22.3]} 22... Qf6 {[%clk 0:00:41.2]} 23. f4 {[%clk 0:00:17.4]} 23... Bc8
{[%clk 0:00:40.6]} 24. Re5 {[%clk 0:00:17.2]} 24... Qf8 {[%clk 0:00:30.3]} 25.
Bxe6 {[%clk 0:00:08.4]} 25... Bxe5 {[%clk 0:00:30.2]} 26. Bxc8 {[%clk
0:00:08.6]} 26... Kxc8 {[%clk 0:00:28.3]} 27. fxe5 {[%clk 0:00:08.3]} 27... Kb8
{[%clk 0:00:23.4]} 28. Ng6 {[%clk 0:00:08.1]} 28... Qg7 {[%clk 0:00:19.4]} 29.
Nf4 {[%clk 0:00:07.7]} 29... Rd7 {[%clk 0:00:16.8]} 30. Kc2 {[%clk 0:00:07.6]}
30... Qe7 {[%clk 0:00:15.6]} 31. Qe3 {[%clk 0:00:06.7]} 31... Ka8 {[%clk
0:00:13.6]} 32. Rd3 {[%clk 0:00:06.7]} 32... Red8 {[%clk 0:00:12.7]} 33. b3
{[%clk 0:00:06.1]} 33... a6 {[%clk 0:00:12.5]} 34. Rd2 {[%clk 0:00:05.7]} 34...
Qg5 {[%clk 0:00:08.3]} 35. Rd3 {[%clk 0:00:05.1]} 35... Qe7 {[%clk 0:00:07.8]}
36. Rd2 {[%clk 0:00:04.9]} 36... Qg5 {[%clk 0:00:08.1]} 37. Rd3 {[%clk
0:00:05.3]} 37... Qe7 {[%clk 0:00:08.2]} 1/2-1/2

[Event "*** SCC Grand Prix: Titled Tuesday Blitz"]
[Site "Chess.com"]
[Date "2020.07.14"]
[Round "3"]
[White "Sergey85Rodchenkov"]
[Black "GMHess"]
[Result "0-1"]
[WhiteElo "2519"]
[BlackElo "2749"]
[TimeControl "180+1"]
[EndTime "10:28:49 PDT"]
[Termination "GMHess won by resignation"]

1. e4 {[%clk 0:03:00.9]} 1... d6 {[%clk 0:03:00.3]} 2. d4 {[%clk 0:03:00.3]}
2... Nf6 {[%clk 0:03:01.2]} 3. Nc3 {[%clk 0:02:59.8]} 3... c6 {[%clk 0:03:00.8]}
4. Nf3 {[%clk 0:02:59.4]} 4... Bg4 {[%clk 0:03:00.4]} 5. Be2 {[%clk 0:02:58.1]}
5... Qc7 {[%clk 0:03:00.5]} 6. a4 {[%clk 0:02:57.6]} 6... e5 {[%clk 0:03:00.3]}
7. O-O {[%clk 0:02:56.5]} 7... Nbd7 {[%clk 0:02:59.9]} 8. Re1 {[%clk 0:02:56.1]}
8... Be7 {[%clk 0:03:00]} 9. a5 {[%clk 0:02:51.5]} 9... O-O {[%clk 0:02:59.4]}
10. b3 {[%clk 0:02:46.4]} 10... Rfe8 {[%clk 0:02:53.1]} 11. Bb2 {[%clk
0:02:46.4]} 11... Bf8 {[%clk 0:02:53.6]} 12. Qd2 {[%clk 0:02:30.5]} 12... Rad8
{[%clk 0:02:44.5]} 13. a6 {[%clk 0:02:15.2]} 13... b5 {[%clk 0:02:39.5]} 14. d5
{[%clk 0:02:15.3]} 14... b4 {[%clk 0:02:36.9]} 15. Na4 {[%clk 0:02:15.3]} 15...
Nxe4 {[%clk 0:02:31.3]} 16. Qxb4 {[%clk 0:02:15.1]} 16... cxd5 {[%clk
0:02:31.6]} 17. c4 {[%clk 0:02:10.9]} 17... Rb8 {[%clk 0:02:17.8]} 18. Qa3
{[%clk 0:02:08.4]} 18... dxc4 {[%clk 0:02:16.5]} 19. Rac1 {[%clk 0:01:56.3]}
19... d5 {[%clk 0:02:13.9]} 20. Qa1 {[%clk 0:01:46.6]} 20... Rxb3 {[%clk
0:01:51.4]} 21. Bxc4 {[%clk 0:01:45.5]} 21... dxc4 {[%clk 0:01:37.4]} 22. Rxe4
{[%clk 0:01:44.7]} 22... Bxf3 {[%clk 0:01:37.3]} 23. gxf3 {[%clk 0:01:44.5]}
23... Nb6 {[%clk 0:01:29.3]} 24. Nxb6 {[%clk 0:01:42.4]} 24... Qxb6 {[%clk
0:01:27.4]} 25. Bxe5 {[%clk 0:01:39.7]} 25... Rxf3 {[%clk 0:01:24]} 26. Re2
{[%clk 0:01:09.5]} 26... Qg6+ {[%clk 0:01:11.7]} 27. Kf1 {[%clk 0:01:05.5]}
27... Ra3 {[%clk 0:00:52]} 28. Qd4 {[%clk 0:00:59.5]} 28... Qxa6 {[%clk
0:00:38.6]} 29. Qxc4 {[%clk 0:00:46]} 29... Qxc4 {[%clk 0:00:38.6]} 30. Rxc4
{[%clk 0:00:46.3]} 30... Rb3 {[%clk 0:00:29.6]} 31. Ree4 {[%clk 0:00:34.9]}
31... f6 {[%clk 0:00:20.2]} 32. Bg3 {[%clk 0:00:32.8]} 32... Rxe4 {[%clk
0:00:19.9]} 33. Rxe4 {[%clk 0:00:33]} 33... a5 {[%clk 0:00:20.5]} 34. Re8 {[%clk
0:00:31.9]} 34... Kf7 {[%clk 0:00:19.2]} 35. Ra8 {[%clk 0:00:31.2]} 35... Bb4
{[%clk 0:00:18.4]} 36. Ke2 {[%clk 0:00:30.9]} 36... h5 {[%clk 0:00:15.7]} 37. h4
{[%clk 0:00:28.4]} 37... g5 {[%clk 0:00:14.6]} 38. Rh8 {[%clk 0:00:26.2]} 38...
Kg6 {[%clk 0:00:14.5]} 39. Rg8+ {[%clk 0:00:24.4]} 39... Kf5 {[%clk 0:00:14.4]}
40. Rh8 {[%clk 0:00:24]} 40... Kg4 {[%clk 0:00:14.6]} 41. hxg5 {[%clk 0:00:24]}
41... fxg5 {[%clk 0:00:14]} 42. Be5 {[%clk 0:00:23.3]} 42... Bc3 {[%clk
0:00:10]} 43. Bd6 {[%clk 0:00:20.8]} 43... Bxh8 {[%clk 0:00:09.6]} 0-1

[Event "*** SCC Grand Prix: Titled Tuesday Blitz"]
[Site "Chess.com"]
[Date "2020.07.14"]
[Round "3"]
[White "Duong57"]
[Black "jannat65"]
[Result "1-0"]
[WhiteElo "2239"]
[BlackElo "1801"]
[TimeControl "180+1"]
[EndTime "10:28:49 PDT"]
[Termination "Duong57 won by resignation"]

1. d4 {[%clk 0:03:00.9]} 1... d5 {[%clk 0:02:57.4]} 2. c4 {[%clk 0:03:01.2]}
2... c6 {[%clk 0:02:57.1]} 3. Nf3 {[%clk 0:03:01]} 3... Nf6 {[%clk 0:02:56.1]}
4. Nc3 {[%clk 0:03:01.7]} 4... e6 {[%clk 0:02:56.2]} 5. Bg5 {[%clk 0:03:01.6]}
5... Nbd7 {[%clk 0:02:55.3]} 6. e3 {[%clk 0:03:01.5]} 6... Qa5 {[%clk
0:02:47.9]} 7. Nd2 {[%clk 0:02:51.5]} 7... Be7 {[%clk 0:02:39.7]} 8. Qc2 {[%clk
0:02:47.8]} 8... O-O {[%clk 0:02:34.4]} 9. Be2 {[%clk 0:02:43.4]} 9... dxc4
{[%clk 0:02:33.1]} 10. Bxf6 {[%clk 0:02:42.3]} 10... Nxf6 {[%clk 0:02:32.6]} 11.
Nxc4 {[%clk 0:02:41.7]} 11... Qg5 {[%clk 0:02:26.6]} 12. O-O {[%clk 0:02:41.7]}
12... c5 {[%clk 0:02:07.9]} 13. Bf3 {[%clk 0:02:05.5]} 13... cxd4 {[%clk
0:01:51]} 14. exd4 {[%clk 0:02:05.2]} 14... Rb8 {[%clk 0:01:33.8]} 15. Ne5
{[%clk 0:02:03.2]} 15... Bd7 {[%clk 0:01:23.2]} 16. Ne4 {[%clk 0:01:58.9]} 16...
Nxe4 {[%clk 0:00:59.3]} 17. Bxe4 {[%clk 0:01:55.9]} 17... Rfd8 {[%clk
0:00:47.8]} 18. Bxh7+ {[%clk 0:01:54.6]} 18... Kf8 {[%clk 0:00:46.4]} 19. Bd3
{[%clk 0:01:45.1]} 19... Rbc8 {[%clk 0:00:44.8]} 20. Qb3 {[%clk 0:01:18.9]}
20... Bc6 {[%clk 0:00:23]} 21. Nxc6 {[%clk 0:01:18.5]} 21... bxc6 {[%clk
0:00:23.9]} 22. Ba6 {[%clk 0:01:10.7]} 22... Rb8 {[%clk 0:00:20.5]} 23. Qc3
{[%clk 0:01:10.7]} 23... Qf4 {[%clk 0:00:17.1]} 24. Rad1 {[%clk 0:01:02]} 24...
Bf6 {[%clk 0:00:17.2]} 25. Qc5+ {[%clk 0:00:59.7]} 25... Kg8 {[%clk 0:00:16.7]}
26. g3 {[%clk 0:00:56.7]} 26... Qe4 {[%clk 0:00:15.3]} 27. Bd3 {[%clk
0:00:48.5]} 27... Qd5 {[%clk 0:00:14.8]} 28. Qc2 {[%clk 0:00:37.7]} 28... Qxd4
{[%clk 0:00:13.6]} 29. b3 {[%clk 0:00:38.1]} 29... Qe5 {[%clk 0:00:13.1]} 30.
Qxc6 {[%clk 0:00:34.5]} 30... Rbc8 {[%clk 0:00:11.1]} 31. Qg2 {[%clk 0:00:31.9]}
31... Rc3 {[%clk 0:00:09.5]} 32. Be4 {[%clk 0:00:29.4]} 32... Rxd1 {[%clk
0:00:08.6]} 33. Rxd1 {[%clk 0:00:29.2]} 33... Qc7 {[%clk 0:00:09.4]} 34. Qh3
{[%clk 0:00:27.7]} 34... g6 {[%clk 0:00:08.5]} 35. Qg4 {[%clk 0:00:27.9]} 35...
Bg7 {[%clk 0:00:08.7]} 36. Qg5 {[%clk 0:00:26.5]} 36... Rc1 {[%clk 0:00:08.4]}
37. Rxc1 {[%clk 0:00:25.9]} 37... Qd7 {[%clk 0:00:07.7]} 38. Qe3 {[%clk
0:00:23.8]} 1-0